fUST/lending_fUST_20250627
["ID","MTS","AMOUNT","RATE_DAILY","PERIOD"]
[368093437,1751022648499,-227.0,0.00021322,2]
[368093439,1751022648508,-1500.0,0.00021368,2]
[368093441,1751022648518,-953.69017575,0.00021368,2]
[368093442,1751022648527,-500.0,0.00021368,2]
[368093444,1751022648536,-477.72,0.00021369,2]
[368093446,1751022648544,-349.42644624,0.00021369,2]
[368093448,1751022648554,-460.0,0.00021369,2]
[368093450,1751022648563,-791.95,0.00021369,2]
[368093452,1751022648574,-460.0,0.00021369,2]
[368093454,1751022648584,-510.25,0.00021369,2]
[368093456,1751022648596,-460.0,0.00021369,2]
[368093458,1751022648606,-528.92,0.00021369,2]
[368093460,1751022648615,-713.1,0.00021369,2]
[368093462,1751022648624,-460.0,0.00021369,2]
[368093465,1751022648635,-543.42198187,0.00021369,2]
[368093467,1751022648644,-1178.46993567,0.00021369,2]
[368093565,1751022670307,5000.0,0.000191,2]
[368093566,1751022792559,205.61546908,0.00019078,2]
[368093567,1751022803776,150.0,0.000189,2]
[368093568,1751022857963,153.0,0.00019,2]
[368093599,1751022909631,5000.0,0.000191,2]
[368093600,1751022972919,200.0,0.00023,30]
[368093985,1751022989632,405.572014,0.00018419,2]
[368094318,1751023104928,150.0,0.000189,2]
[368094334,1751023105646,5883.21330288,0.000185,2]
[368094336,1751023105668,4116.78669712,0.000185,2]
[368094553,1751023134343,2664.57943368,0.000191,2]
[368094943,1751023275015,162.890751,0.00013699,2]
[368094944,1751023277428,4487.0633462,0.00018315,2]
[368094947,1751023313767,24900.0,0.00018221,2]
[368094951,1751023344583,5000.0,0.000191,2]
[368094952,1751023361078,5000.0,0.000191,2]
[368095447,1751023534098,-151.0,0.00019166,2]
[368095448,1751023534123,-1150.01024804,0.00019176,2]
[368095460,1751023634172,250.34469647,0.00019016,2]
[368095464,1751023641105,-300.0,0.00019175,2]
[368095465,1751023641126,-114.0,0.00019176,2]
[368095467,1751023657834,226.8635428,0.0001829,2]
[368095502,1751023714726,30642.54379335,0.00019,20]
[368095504,1751023726120,10085.3073402,0.00018436,2]
[368095531,1751023831879,-300.0,0.00019175,2]
[368095532,1751023831888,-298.16471941,0.00019176,2]
[368095533,1751023831900,-543.71931646,0.00019176,2]
[368095534,1751023831911,-358.11596413,0.00019176,2]
[368095535,1751023831921,-623.42072012,0.00019176,2]
[368095536,1751023831932,-576.57927988,0.00019176,2]
[368095537,1751023831941,-5466.40729708,0.00019177,2]
[368095538,1751023831953,-5701.79936009,0.00019177,2]
[368095539,1751023831966,-500.0,0.00019177,2]
[368095540,1751023831975,-500.0,0.00019177,2]
[368095541,1751023831985,-500.0,0.00019177,2]
[368095542,1751023831995,-500.0,0.00019177,2]
[368095543,1751023832003,-500.0,0.00019177,2]
[368095544,1751023832013,-428.85064495,0.00019177,2]
[368095545,1751023832022,-500.0,0.00019177,2]
[368095546,1751023832032,-500.0,0.00019177,2]
[368095547,1751023832041,-500.0,0.00019177,2]
[368095548,1751023832052,-500.0,0.00019177,2]
[368095549,1751023832061,-500.0,0.00019177,2]
[368095550,1751023832070,-500.0,0.00019177,2]
[368095551,1751023832079,-500.0,0.00019177,2]
[368095552,1751023832088,-500.0,0.00019177,2]
[368095553,1751023832097,-503.62199164,0.00019177,2]
[368095554,1751023832107,-500.0,0.00019177,2]
[368095555,1751023832116,-500.0,0.00019177,2]
[368095556,1751023832125,-500.0,0.00019177,2]
[368095557,1751023832134,-500.0,0.00019177,2]
[368095558,1751023832144,-500.0,0.00019177,2]
[368095559,1751023832153,-500.0,0.00019177,2]
[368095560,1751023832163,-500.0,0.00019177,2]
[368095561,1751023832172,-500.0,0.00019177,2]
[368095562,1751023832181,-500.0,0.00019177,2]
[368095563,1751023832190,-530.28760671,0.00019177,2]
[368095564,1751023832198,-500.0,0.00019177,2]
[368095565,1751023832207,-500.0,0.00019177,2]
[368095566,1751023832216,-500.0,0.00019177,2]
[368095567,1751023832225,-500.0,0.00019177,2]
[368095568,1751023832234,-300.0,0.00019177,2]
[368095569,1751023832243,-243.37908774,0.00019177,2]
[368095570,1751023832253,-390.0,0.00019177,2]
[368095571,1751023832262,-417.58934739,0.00019177,2]
[368095572,1751023832271,-500.0,0.00019177,2]
[368095573,1751023832280,-400.0,0.00019177,2]
[368095575,1751023832289,-229.15928043,0.00019177,2]
[368095620,1751023837994,-70.84071957,0.00019177,2]
[368095622,1751023838004,-281.88401381,0.00019177,2]
[368095624,1751023838014,-300.0,0.00019177,2]
[368095626,1751023838024,-460.0,0.00019178,2]
[368095628,1751023838033,-460.0,0.00019178,2]
[368095630,1751023838042,-460.0,0.00019178,2]
[368095632,1751023838052,-500.0,0.00019178,2]
[368095634,1751023838061,-460.0,0.00019178,2]
[368095636,1751023838070,-394.29574092,0.00019178,2]
[368095637,1751023838079,-460.0,0.00019178,2]
[368095639,1751023838089,-460.0,0.00019178,2]
[368095642,1751023838098,-460.0,0.00019178,2]
[368095644,1751023838108,-460.0,0.00019178,2]
[368095646,1751023838118,-586.51306352,0.00019178,2]
[368095648,1751023838127,-460.0,0.00019178,2]
[368095650,1751023838137,-460.0,0.00019178,2]
[368095652,1751023838146,-460.0,0.00019178,2]
[368095654,1751023838157,-232.56138905,0.00019178,2]
[368095656,1751023838166,-460.0,0.00019178,2]
[368095658,1751023838175,-460.0,0.00019178,2]
[368095660,1751023838184,-460.0,0.00019178,2]
[368095662,1751023838193,-460.0,0.00019178,2]
[368095664,1751023838203,-460.0,0.00019178,2]
[368095666,1751023838213,-460.0,0.00019178,2]
[368095668,1751023838222,-460.0,0.00019178,2]
[368095670,1751023838231,-460.0,0.00019178,2]
[368095672,1751023838241,-463.20601499,0.00019178,2]
[368095674,1751023838250,-484.1,0.00019178,2]
[368095676,1751023838260,-460.0,0.00019178,2]
[368095678,1751023838269,-460.0,0.00019178,2]
[368095681,1751023838278,-519.96639086,0.00019178,2]
[368095683,1751023838287,-460.0,0.00019178,2]
[368095685,1751023838297,-460.0,0.00019178,2]
[368095687,1751023838306,-464.34,0.00019178,2]
[368095689,1751023838315,-460.0,0.00019178,2]
[368095691,1751023838324,-460.0,0.00019178,2]
[368095693,1751023838334,-460.0,0.00019178,2]
[368095695,1751023838343,-460.0,0.00019178,2]
[368095697,1751023838352,-460.0,0.00019178,2]
[368095699,1751023838361,-460.0,0.00019178,2]
[368095701,1751023838370,-460.36280695,0.00019178,2]
[368095703,1751023838379,-460.0,0.00019178,2]
[368095705,1751023838388,-460.0,0.00019178,2]
[368095707,1751023838398,-460.0,0.00019178,2]
[368095709,1751023838407,-249.45144,0.00019178,2]
[368095711,1751023838417,-460.0,0.00019178,2]
[368095713,1751023838426,-460.0,0.00019178,2]
[368095715,1751023838436,-460.0,0.00019178,2]
[368095717,1751023838446,-460.0,0.00019178,2]
[368095719,1751023838455,-460.0,0.00019178,2]
[368095721,1751023838465,-460.0,0.00019178,2]
[368095723,1751023838475,-460.0,0.00019178,2]
[368095726,1751023838484,-133.85659712,0.00019178,2]
[368095734,1751023838652,-323.40939634,0.00019178,2]
[368095735,1751023838665,-2.79931816,0.00019178,2]
[368095736,1751023838675,-460.0,0.00019178,2]
[368095737,1751023838684,-460.0,0.00019178,2]
[368095738,1751023838694,-460.0,0.00019178,2]
[368095739,1751023838703,-460.0,0.00019178,2]
[368095740,1751023838712,-319.88750142,0.00019178,2]
[368095742,1751023838721,-460.0,0.00019178,2]
[368095744,1751023838731,-497.35794562,0.00019178,2]
[368095746,1751023838740,-460.0,0.00019178,2]
[368095748,1751023838749,-460.0,0.00019178,2]
[368095751,1751023838759,-460.0,0.00019178,2]
[368095754,1751023838768,-472.96471581,0.00019178,2]
[368095756,1751023838777,-415.87444028,0.00019178,2]
[368095758,1751023838787,-460.0,0.00019178,2]
[368095760,1751023838796,-340.15638719,0.00019178,2]
[368095762,1751023838805,-460.0,0.00019178,2]
[368095764,1751023838814,-460.0,0.00019178,2]
[368095766,1751023838823,-462.64542683,0.00019178,2]
[368095768,1751023838833,-460.0,0.00019178,2]
[368095770,1751023838842,-460.0,0.00019178,2]
[368095772,1751023838851,-460.0,0.00019178,2]
[368095774,1751023838860,-447.90001521,0.00019178,2]
[368095776,1751023838869,-460.0,0.00019178,2]
[368095778,1751023838879,-460.0,0.00019178,2]
[368095780,1751023838888,-460.0,0.00019178,2]
[368095782,1751023838897,-460.0,0.00019178,2]
[368095784,1751023838906,-460.0,0.00019178,2]
[368095786,1751023838915,-460.0,0.00019178,2]
[368095788,1751023838924,-670.1,0.00019178,2]
[368095790,1751023838933,-436.13035792,0.00019178,2]
[368095792,1751023838942,-150.31083786,0.00019178,2]
[368095810,1751023839109,-309.68916214,0.00019178,2]
[368095812,1751023839119,-16.07321362,0.00019178,2]
[368095814,1751023839131,-443.92678638,0.00019178,2]
[368095816,1751023839141,-258.91941248,0.00019178,2]
[368095818,1751023839151,-460.0,0.00019178,2]
[368095820,1751023839160,-460.0,0.00019178,2]
[368095822,1751023839169,-460.0,0.00019178,2]
[368095824,1751023839179,-342.05380111,0.00019178,2]
[368095827,1751023839198,-117.94619889,0.00019178,2]
[368095829,1751023839208,-460.0,0.00019178,2]
[368095832,1751023839219,-460.0,0.00019178,2]
[368095834,1751023839229,-460.0,0.00019178,2]
[368095835,1751023839238,-460.0,0.00019178,2]
[368095837,1751023839247,-460.0,0.00019178,2]
[368095839,1751023839256,-460.0,0.00019178,2]
[368095841,1751023839266,-460.0,0.00019178,2]
[368095844,1751023839275,-197.45688528,0.00019178,2]
[368095846,1751023839285,-460.0,0.00019178,2]
[368095847,1751023839294,-460.0,0.00019178,2]
[368095850,1751023839303,-430.0,0.00019178,2]
[368095851,1751023839312,-460.0,0.00019178,2]
[368095854,1751023839322,-460.0,0.00019178,2]
[368095856,1751023839331,-460.0,0.00019178,2]
[368095858,1751023839340,-460.0,0.00019178,2]
[368095860,1751023839350,-460.0,0.00019178,2]
[368095862,1751023839359,-460.0,0.00019178,2]
[368095864,1751023839368,-460.0,0.00019178,2]
[368095866,1751023839378,-371.28670444,0.00019178,2]
[368095868,1751023839387,-460.0,0.00019178,2]
[368095870,1751023839397,-460.0,0.00019178,2]
[368095872,1751023839406,-465.56153685,0.00019178,2]
[368095874,1751023839416,-460.0,0.00019178,2]
[368095876,1751023839426,-523.16,0.00019178,2]
[368095877,1751023839435,-460.0,0.00019178,2]
[368095879,1751023839444,-460.0,0.00019178,2]
[368095881,1751023839454,-460.0,0.00019178,2]
[368095883,1751023839463,-460.0,0.00019178,2]
[368095885,1751023839473,-460.0,0.00019178,2]
[368095887,1751023839483,-460.0,0.00019178,2]
[368095889,1751023839493,-460.0,0.00019178,2]
[368095891,1751023839502,-460.0,0.00019178,2]
[368095893,1751023839512,-460.0,0.00019178,2]
[368095895,1751023839521,-460.0,0.00019178,2]
[368095897,1751023839531,-460.0,0.00019178,2]
[368095899,1751023839541,-460.0,0.00019178,2]
[368095901,1751023839550,-432.221883,0.00019178,2]
[368095903,1751023839560,-466.6039217,0.00019178,2]
[368095906,1751023839570,-460.0,0.00019178,2]
[368095908,1751023839579,-460.0,0.00019178,2]
[368095910,1751023839588,-461.38919986,0.00019178,2]
[368095911,1751023839598,-463.12387711,0.00019178,2]
[368095913,1751023839607,-460.0,0.00019178,2]
[368095915,1751023839617,-460.0,0.00019178,2]
[368095917,1751023839626,-460.0,0.00019178,2]
[368095919,1751023839636,-460.0,0.00019178,2]
[368095922,1751023839646,-460.0,0.00019178,2]
[368095926,1751023839656,-460.0,0.00019178,2]
[368095927,1751023839666,-460.0,0.00019178,2]
[368095930,1751023839677,-460.0,0.00019178,2]
[368095932,1751023839686,-460.0,0.00019178,2]
[368095934,1751023839696,-460.0,0.00019178,2]
[368095935,1751023839705,-460.0,0.00019178,2]
[368095938,1751023839714,-153.23896903,0.00019178,2]
[368095939,1751023839724,-461.83480314,0.00019178,2]
[368095941,1751023839733,-460.0,0.00019178,2]
[368095943,1751023839743,-460.0,0.00019178,2]
[368095945,1751023839752,-460.0,0.00019178,2]
[368095947,1751023839761,-460.0,0.00019178,2]
[368095949,1751023839770,-504.94,0.00019178,2]
[368095951,1751023839779,-460.0,0.00019178,2]
[368095953,1751023839789,-500.0,0.00019178,2]
[368095955,1751023839798,-500.0,0.00019178,2]
[368095957,1751023839808,-500.0,0.00019178,2]
[368095959,1751023839817,-500.0,0.00019178,2]
[368095961,1751023839827,-500.0,0.00019178,2]
[368095963,1751023839836,-460.0,0.00019178,2]
[368095965,1751023839845,-500.0,0.00019178,2]
[368095967,1751023839854,-500.0,0.00019178,2]
[368095969,1751023839864,-460.0,0.00019178,2]
[368095971,1751023839873,-460.0,0.00019178,2]
[368095973,1751023839882,-460.0,0.00019178,2]
[368095975,1751023839891,-500.0,0.00019178,2]
[368095977,1751023839901,-460.0,0.00019178,2]
[368095979,1751023839911,-460.0,0.00019178,2]
[368095981,1751023839920,-452.90703362,0.00019178,2]
[368095983,1751023839930,-199.62472061,0.00019178,2]
[368095985,1751023839939,-460.0,0.00019178,2]
[368095987,1751023839949,-460.0,0.00019178,2]
[368095989,1751023839958,-460.0,0.00019178,2]
[368095991,1751023839972,-460.0,0.00019178,2]
[368095994,1751023839983,-460.0,0.00019178,2]
[368095996,1751023839992,-460.0,0.00019178,2]
[368095998,1751023840003,-460.0,0.00019178,2]
[368096000,1751023840013,-861.02,0.00019178,2]
[368096002,1751023840023,-523.43,0.00019178,2]
[368096004,1751023840032,-460.0,0.00019178,2]
[368096006,1751023840041,-460.0,0.00019178,2]
[368096008,1751023840050,-179.11155793,0.00019178,2]
[368096010,1751023840059,-460.0,0.00019178,2]
[368096012,1751023840069,-460.0,0.00019178,2]
[368096014,1751023840082,-460.0,0.00019178,2]
[368096016,1751023840091,-460.0,0.00019178,2]
[368096017,1751023840101,-4378.2,0.00019178,2]
[368096019,1751023840110,-460.0,0.00019178,2]
[368096021,1751023840126,-541.4189717,0.00019178,2]
[368096023,1751023840136,-460.0,0.00019178,2]
[368096025,1751023840146,-460.0,0.00019178,2]
[368096027,1751023840156,-461.46830247,0.00019178,2]
[368096029,1751023840165,-588.22,0.00019178,2]
[368096031,1751023840175,-460.0,0.00019178,2]
[368096033,1751023840184,-460.0,0.00019178,2]
[368096035,1751023840193,-376.07853164,0.00019178,2]
[368096037,1751023840203,-460.0,0.00019178,2]
[368096039,1751023840212,-460.92,0.00019178,2]
[368096042,1751023840223,-460.0,0.00019178,2]
[368096044,1751023840232,-460.0,0.00019178,2]
[368096045,1751023840242,-460.0,0.00019178,2]
[368096047,1751023840251,-460.0,0.00019178,2]
[368096049,1751023840261,-628.72,0.00019178,2]
[368096051,1751023840269,-590.65953835,0.00019178,2]
[368096053,1751023840279,-460.0,0.00019178,2]
[368096055,1751023840288,-463.24713293,0.00019178,2]
[368096057,1751023840297,-460.0,0.00019178,2]
[368096061,1751023840322,-467.54238048,0.00019178,2]
[368096063,1751023840332,-460.0,0.00019178,2]
[368096065,1751023840341,-460.0,0.00019178,2]
[368096067,1751023840350,-509.88,0.00019178,2]
[368096069,1751023840360,-467.81953163,0.00019178,2]
[368096071,1751023840369,-460.0,0.00019178,2]
[368096073,1751023840378,-460.0,0.00019178,2]
[368096075,1751023840388,-460.0,0.00019178,2]
[368096077,1751023840397,-460.0,0.00019178,2]
[368096079,1751023840407,-460.0,0.00019178,2]
[368096081,1751023840416,-460.0,0.00019178,2]
[368096083,1751023840425,-603.60623476,0.00019178,2]
[368096085,1751023840435,-460.35116092,0.00019178,2]
[368096087,1751023840444,-460.0,0.00019178,2]
[368096089,1751023840453,-460.0,0.00019178,2]
[368096091,1751023840462,-460.0,0.00019178,2]
[368096093,1751023840472,-460.0,0.00019178,2]
[368096095,1751023840481,-460.0,0.00019178,2]
[368096097,1751023840490,-460.0,0.00019178,2]
[368096099,1751023840499,-215.592634,0.00019178,2]
[368096101,1751023840509,-460.0,0.00019178,2]
[368096103,1751023840519,-682.73,0.00019178,2]
[368096105,1751023840528,-466.14675187,0.00019178,2]
[368096107,1751023840537,-460.0,0.00019178,2]
[368096109,1751023840547,-1390.09,0.00019178,2]
[368096111,1751023840556,-247.83973331,0.00019178,2]
[368096113,1751023840566,-460.0,0.00019178,2]
[368096115,1751023840575,-974.36,0.00019178,2]
[368096117,1751023840585,-3896.23,0.00019178,2]
[368096119,1751023840594,-764.98,0.00019178,2]
[368096121,1751023840603,-460.0,0.00019178,2]
[368096123,1751023840613,-2635.04,0.00019178,2]
[368096125,1751023840622,-460.0,0.00019178,2]
[368096127,1751023840631,-460.0,0.00019178,2]
[368096129,1751023840640,-460.0,0.00019178,2]
[368096131,1751023840650,-246.23221673,0.00019178,2]
[368096133,1751023840659,-460.0,0.00019178,2]
[368096135,1751023840668,-460.0,0.00019178,2]
[368096137,1751023840678,-460.0,0.00019178,2]
[368096139,1751023840687,-598.58,0.00019178,2]
[368096141,1751023840696,-460.0,0.00019178,2]
[368096143,1751023840705,-274.86498266,0.00019178,2]
[368096144,1751023840714,-460.0,0.00019178,2]
[368096146,1751023840723,-460.0,0.00019178,2]
[368096148,1751023840732,-460.0,0.00019178,2]
[368096150,1751023840741,-460.0,0.00019178,2]
[368096153,1751023840751,-478.89,0.00019178,2]
[368096155,1751023840761,-500.0,0.00019178,2]
[368096157,1751023840769,-460.0,0.00019178,2]
[368096159,1751023840778,-6283.42,0.00019178,2]
[368096161,1751023840787,-500.0,0.00019178,2]
[368096163,1751023840797,-500.0,0.00019178,2]
[368096165,1751023840806,-374.78,0.00019178,2]
[368096167,1751023840816,-460.0,0.00019178,2]
[368096169,1751023840824,-1715.36,0.00019178,2]
[368096170,1751023840833,-460.0,0.00019178,2]
[368096172,1751023840842,-460.0,0.00019178,2]
[368096174,1751023840851,-460.0,0.00019178,2]
[368096176,1751023840860,-460.0,0.00019178,2]
[368096179,1751023840870,-460.0,0.00019178,2]
[368096180,1751023840879,-2268.92,0.00019178,2]
[368096182,1751023840888,-460.0,0.00019178,2]
[368096185,1751023840898,-460.0,0.00019178,2]
[368096186,1751023840907,-460.0,0.00019178,2]
[368096188,1751023840917,-460.0,0.00019178,2]
[368096190,1751023840926,-460.0,0.00019178,2]
[368096192,1751023840935,-460.0,0.00019178,2]
[368096193,1751023840944,-460.0,0.00019178,2]
[368096194,1751023840954,-2719.84,0.00019178,2]
[368096195,1751023840966,-460.0,0.00019178,2]
[368096196,1751023840975,-460.0,0.00019178,2]
[368096197,1751023840984,-460.0,0.00019178,2]
[368096198,1751023840993,-460.0,0.00019178,2]
[368096199,1751023841003,-460.0,0.00019178,2]
[368096200,1751023841012,-1042.16,0.00019178,2]
[368096201,1751023841021,-460.0,0.00019178,2]
[368096202,1751023841030,-460.0,0.00019178,2]
[368096203,1751023841039,-460.0,0.00019178,2]
[368096204,1751023841048,-460.0,0.00019178,2]
[368096205,1751023841058,-460.0,0.00019178,2]
[368096207,1751023841067,-460.0,0.00019178,2]
[368096209,1751023841076,-460.0,0.00019178,2]
[368096211,1751023841085,-538.2,0.00019178,2]
[368096213,1751023841094,-460.0,0.00019178,2]
[368096215,1751023841103,-460.0,0.00019178,2]
[368096217,1751023841112,-460.0,0.00019178,2]
[368096219,1751023841121,-460.0,0.00019178,2]
[368096221,1751023841131,-398.23,0.00019178,2]
[368096223,1751023841140,-791.9,0.00019178,2]
[368096225,1751023841149,-460.0,0.00019178,2]
[368096227,1751023841158,-460.0,0.00019178,2]
[368096229,1751023841167,-460.0,0.00019178,2]
[368096231,1751023841177,-460.0,0.00019178,2]
[368096233,1751023841187,-460.0,0.00019178,2]
[368096235,1751023841196,-460.0,0.00019178,2]
[368096237,1751023841205,-460.0,0.00019178,2]
[368096239,1751023841214,-460.0,0.00019178,2]
[368096241,1751023841228,-460.0,0.00019178,2]
[368096243,1751023841237,-622.14,0.00019178,2]
[368096244,1751023841246,-460.0,0.00019178,2]
[368096246,1751023841255,-1225.8,0.00019178,2]
[368096249,1751023841265,-460.0,0.00019178,2]
[368096250,1751023841274,-663.0,0.00019178,2]
[368096252,1751023841283,-2244.93,0.00019178,2]
[368096255,1751023841293,-460.0,0.00019178,2]
[368096256,1751023841302,-460.0,0.00019178,2]
[368096258,1751023841311,-460.0,0.00019178,2]
[368096260,1751023841321,-1865.66,0.00019178,2]
[368096262,1751023841330,-460.0,0.00019178,2]
[368096264,1751023841339,-460.0,0.00019178,2]
[368096266,1751023841348,-460.0,0.00019178,2]
[368096268,1751023841357,-460.0,0.00019178,2]
[368096270,1751023841366,-460.0,0.00019178,2]
[368096272,1751023841375,-460.0,0.00019178,2]
[368096274,1751023841384,-460.0,0.00019178,2]
[368096276,1751023841394,-460.0,0.00019178,2]
[368096278,1751023841403,-460.0,0.00019178,2]
[368096280,1751023841412,-460.0,0.00019178,2]
[368096282,1751023841420,-460.0,0.00019178,2]
[368096284,1751023841429,-1265.65,0.00019178,2]
[368096286,1751023841439,-299.2099723,0.00019178,2]
[368096288,1751023841448,-460.0,0.00019178,2]
[368096290,1751023841457,-590.36,0.00019178,2]
[368096292,1751023841466,-460.0,0.00019178,2]
[368096294,1751023841476,-976.49,0.00019178,2]
[368096296,1751023841485,-529.89902784,0.00019178,2]
[368096298,1751023841494,-5535.19,0.00019178,2]
[368096300,1751023841504,-550.8,0.00019178,2]
[368096302,1751023841514,-760.24,0.00019178,2]
[368096304,1751023841523,-460.0,0.00019178,2]
[368096306,1751023841532,-460.0,0.00019178,2]
[368096308,1751023841541,-460.0,0.00019178,2]
[368096310,1751023841550,-460.0,0.00019178,2]
[368096312,1751023841560,-438.70732351,0.00019178,2]
[368096314,1751023841569,-460.0,0.00019178,2]
[368096316,1751023841579,-460.0,0.00019178,2]
[368096318,1751023841588,-2040.26,0.00019178,2]
[368096320,1751023841597,-460.0,0.00019178,2]
[368096322,1751023841607,-460.0,0.00019178,2]
[368096324,1751023841617,-3800.83,0.00019178,2]
[368096326,1751023841626,-460.0,0.00019178,2]
[368096328,1751023841635,-753.43,0.00019178,2]
[368096330,1751023841644,-460.0,0.00019178,2]
[368096332,1751023841654,-460.0,0.00019178,2]
[368096334,1751023841664,-460.0,0.00019178,2]
[368096336,1751023841673,-460.0,0.00019178,2]
[368096338,1751023841683,-460.0,0.00019178,2]
[368096340,1751023841692,-569.62846399,0.00019178,2]
[368096342,1751023841702,-460.0,0.00019178,2]
[368096344,1751023841712,-504.32,0.00019178,2]
[368096346,1751023841722,-460.0,0.00019178,2]
[368096348,1751023841731,-1510.27,0.00019178,2]
[368096350,1751023841740,-460.0,0.00019178,2]
[368096352,1751023841750,-720.59,0.00019178,2]
[368096354,1751023841759,-500.0,0.00019178,2]
[368096356,1751023841768,-305.297708,0.00019178,2]
[368096358,1751023841777,-2488.99577692,0.00019352,2]
[368096360,1751023841787,-13932.06237176,0.00019352,2]
[368096362,1751023841797,-500.0,0.00019451,2]
[368096365,1751023841806,-500.0,0.00019451,2]
[368096367,1751023841816,-486.8,0.00019451,2]
[368096369,1751023841825,-460.0,0.00019452,2]
[368096370,1751023841835,-161.02162801,0.00019452,2]
[368096372,1751023841844,-420.47250131,0.00019452,2]
[368096374,1751023841853,-460.0,0.00019452,2]
[368096376,1751023841862,-400.0,0.00019452,2]
[368096378,1751023841872,-605.11,0.00019452,2]
[368096381,1751023841882,-460.0,0.00019452,2]
[368096383,1751023841890,-460.0,0.00019452,2]
[368096385,1751023841899,-460.0,0.00019452,2]
[368096387,1751023841909,-460.0,0.00019452,2]
[368096389,1751023841919,-460.0,0.00019452,2]
[368096391,1751023841928,-460.0,0.00019452,2]
[368096393,1751023841937,-460.0,0.00019452,2]
[368096395,1751023841946,-205.08,0.00019452,2]
[368096397,1751023841955,-410.35596139,0.00019452,2]
[368096399,1751023841967,-581.67089768,0.00019452,2]
[368096401,1751023841976,-460.0,0.00019452,2]
[368096403,1751023841986,-210.77,0.00019452,2]
[368096405,1751023841996,-460.0,0.00019452,2]
[368096407,1751023842005,-460.0,0.00019452,2]
[368096409,1751023842014,-520.11,0.00019452,2]
[368096411,1751023842024,-460.0,0.00019452,2]
[368096413,1751023842033,-460.0,0.00019452,2]
[368096415,1751023842042,-460.0,0.00019452,2]
[368096417,1751023842052,-460.0,0.00019452,2]
[368096419,1751023842061,-460.0,0.00019452,2]
[368096421,1751023842071,-460.0,0.00019452,2]
[368096423,1751023842080,-460.0,0.00019452,2]
[368096425,1751023842090,-464.3291098,0.00019452,2]
[368096427,1751023842099,-460.0,0.00019452,2]
[368096429,1751023842108,-460.0,0.00019452,2]
[368096430,1751023842117,-670.1,0.00019452,2]
[368096432,1751023842127,-460.0,0.00019452,2]
[368096434,1751023842135,-460.0,0.00019452,2]
[368096436,1751023842145,-460.0,0.00019452,2]
[368096438,1751023842154,-551.71,0.00019452,2]
[368096440,1751023842163,-460.0,0.00019452,2]
[368096442,1751023842173,-460.0,0.00019452,2]
[368096444,1751023842182,-460.0,0.00019452,2]
[368096446,1751023842191,-460.0,0.00019452,2]
[368096448,1751023842200,-460.0,0.00019452,2]
[368096450,1751023842209,-460.0,0.00019452,2]
[368096452,1751023842219,-466.71687696,0.00019452,2]
[368096467,1751023842343,-460.0,0.00019452,2]
[368096469,1751023842352,-403.24505231,0.00019452,2]
[368096471,1751023842362,-460.0,0.00019452,2]
[368096473,1751023842371,-297.94059084,0.00019452,2]